[Event "Mistrovství Čech mládeže 2023 - HD12"]
[Site "Harrachov, Czech Republic"]
[Date "2023.10.24"]
[Round "5.14"]
[White "Vorlík, Jáchym"]
[Black "Gernert, Tomáš"]
[Result "0-1"]
[TimeControl "90m + 30s"]
[WhiteElo "1210"]
[BlackElo "1389"]

1. e4 {[%clk 01:30:50]} {[%emt 00:00:10]} c5 {[%clk 01:30:59]} {[%emt
00:00:02]} 2. Nf3 {[%clk 01:31:01]} {[%emt 00:00:18]} Nc6 {[%clk 01:31:23]}
{[%emt 00:00:06]} 3. Bb5 {[%clk 01:31:19]} {[%emt 00:00:13]} a6 {[%clk
01:31:41]} {[%emt 00:00:12]} 4. Bxc6 {[%clk 01:31:33]} {[%emt 00:00:16]} bxc6
{[%clk 01:32:07]} {[%emt 00:00:04]} 5. O-O {[%clk 01:31:32]} {[%emt 00:00:31]}
g6 {[%clk 01:32:22]} {[%emt 00:00:14]} 6. Re1 {[%clk 01:31:48]} {[%emt
00:00:14]} Bg7 {[%clk 01:31:58]} {[%emt 00:00:54]} 7. c3 {[%clk 01:31:38]}
{[%emt 00:00:40]} d5 {[%clk 01:30:53]} {[%emt 00:01:35]} 8. exd5 {[%clk
01:31:30]} {[%emt 00:00:38]} cxd5 {[%clk 01:31:16]} {[%emt 00:00:07]} 9. d4
{[%clk 01:31:23]} {[%emt 00:00:37]} cxd4 {[%clk 01:31:22]} {[%emt 00:00:25]} 10.
cxd4 {[%clk 01:31:36]} {[%emt 00:00:17]} Nh6 {[%clk 01:31:15]} {[%emt
00:00:37]} 11. Bxh6 {[%clk 01:31:03]} {[%emt 00:01:02]} Bxh6 {[%clk 01:31:39]}
{[%emt 00:00:06]} 12. Qe2 {[%clk 01:30:40]} {[%emt 00:00:53]} e6 {[%clk
01:31:21]} {[%emt 00:00:49]} 13. Qe5 {[%clk 01:30:11]} {[%emt 00:00:58]} O-O
{[%clk 01:31:07]} {[%emt 00:00:44]} 14. Nc3 {[%clk 01:28:59]} {[%emt 00:01:43]}
Bg7 {[%clk 01:30:57]} {[%emt 00:00:39]} 15. Qe2 {[%clk 01:29:03]} {[%emt
00:00:26]} Qb6 {[%clk 01:29:43]} {[%emt 00:01:43]} 16. Rad1 {[%clk 01:28:34]}
{[%emt 00:01:00]} Rb8 {[%clk 01:27:34]} {[%emt 00:02:40]} 17. Rd2 {[%clk
01:25:39]} {[%emt 00:03:24]} Bd7 {[%clk 01:25:18]} {[%emt 00:02:46]} 18. Qd1
{[%clk 01:24:07]} {[%emt 00:02:02]} Rfc8 {[%clk 01:20:59]} {[%emt 00:04:47]} 19.
h3 {[%clk 01:19:26]} {[%emt 00:05:14]} Qa5 {[%clk 01:18:09]} {[%emt 00:03:20]}
20. a3 {[%clk 01:12:35]} {[%emt 00:07:21]} Bh6 {[%clk 01:18:00]} {[%emt
00:00:38]} 21. Rde2 {[%clk 01:11:02]} {[%emt 00:02:03]} Bb5 {[%clk 01:18:06]}
{[%emt 00:00:24]} 22. Nxb5 {[%clk 01:10:58]} {[%emt 00:00:34]} Qxb5 {[%clk
01:18:16]} {[%emt 00:00:20]} 23. b4 {[%clk 01:08:57]} {[%emt 00:02:31]} Rc1
{[%clk 01:13:43]} {[%emt 00:05:02]} 24. a4 {[%clk 01:03:04]} {[%emt 00:06:24]}
Qc4 {[%clk 01:12:45]} {[%emt 00:01:28]} 25. Nd2 {[%clk 01:02:52]} {[%emt
00:00:43]} Rxd1 {[%clk 01:12:16]} {[%emt 00:00:59]} 26. Nxc4 {[%clk 01:02:50]}
{[%emt 00:01:02]} Rxe1+ {[%clk 01:13:07]} {[%emt 00:00:08]} 27. Rxe1 {[%clk
01:03:15]} {[%emt 00:00:05]} dxc4 {[%clk 01:13:31]} {[%emt 00:00:06]} 28. Re5
{[%clk 01:02:28]} {[%emt 00:01:16]} Rxb4 {[%clk 01:13:24]} {[%emt 00:00:38]} 29.
Rc5 {[%clk 01:00:55]} {[%emt 00:02:00]} Rxa4 {[%clk 01:13:40]} {[%emt
00:00:17]} 30. Kf1 {[%clk 01:01:12]} {[%emt 00:00:12]} Ra1+ {[%clk 01:13:46]}
{[%emt 00:00:24]} 31. Ke2 {[%clk 01:01:33]} {[%emt 00:00:09]} Rc1 {[%clk
01:14:05]} {[%emt 00:00:11]} 32. g3 {[%clk 01:01:34]} {[%emt 00:00:29]} Rc2+
{[%clk 01:14:09]} {[%emt 00:00:27]} 33. Kf3 {[%clk 01:00:50]} {[%emt 00:01:13]}
c3 {[%clk 01:14:29]} {[%emt 00:00:10]} 34. h4 {[%clk 01:00:35]} {[%emt
00:00:45]} Bd2 {[%clk 01:14:51]} {[%emt 00:00:08]} 35. Ke2 {[%clk 01:00:29]}
{[%emt 00:00:35]} Ra2 {[%clk 01:14:23]} {[%emt 00:00:58]} 36. Kd3 {[%clk
01:00:38]} {[%emt 00:00:22]} a5 {[%clk 01:14:39]} {[%emt 00:00:15]} 37. g4
{[%clk 01:00:51]} {[%emt 00:00:16]} a4 {[%clk 01:15:02]} {[%emt 00:00:07]} 38.
h5 {[%clk 01:01:12]} {[%emt 00:00:10]} a3 {[%clk 01:15:18]} {[%emt 00:00:14]}
39. f4 {[%clk 01:01:21]} {[%emt 00:00:21]} Bxf4 {[%clk 01:14:33]} {[%emt
00:01:15]} 40. Rxc3 {[%clk 01:01:27]} {[%emt 00:00:24]} Rd2+ {[%clk 01:14:34]}
{[%emt 00:00:29]} 41. Ke4 {[%clk 01:01:16]} {[%emt 00:00:39]} a2 {[%clk
01:13:57]} {[%emt 00:01:08]} 42. h6 {[%clk 01:01:35]} {[%emt 00:00:11]} Bxh6
{[%clk 01:14:10]} {[%emt 00:00:17]} 43. Rc8+ {[%clk 01:01:34]} {[%emt
00:00:30]} Kg7 {[%clk 01:14:33]} {[%emt 00:00:08]} 44. Ra8 {[%clk 01:01:57]}
{[%emt 00:00:07]} f5+ {[%clk 01:14:46]} {[%emt 00:00:17]} 45. gxf5 {[%clk
01:02:11]} {[%emt 00:00:16]} gxf5+ {[%clk 01:14:44]} {[%emt 00:00:33]} 46. Ke5
{[%clk 01:02:29]} {[%emt 00:00:12]} Be3 {[%clk 01:15:03]} {[%emt 00:00:11]} 47.
Ra7+ {[%clk 01:02:45]} {[%emt 00:00:14]} Kg6 {[%clk 01:15:26]} {[%emt
00:00:06]} 48. Ra6 {[%clk 01:02:02]} {[%emt 00:01:13]} Bxd4+ {[%clk 01:15:38]}
{[%emt 00:00:19]} 49. Kf4 {[%clk 01:02:19]} {[%emt 00:00:12]} a1=Q {[%clk
01:15:50]} {[%emt 00:00:20]} 50. Ra3 {[%clk 01:02:11]} {[%emt 00:00:37]} e5+
{[%clk 01:15:48]} {[%emt 00:00:32]} 51. Kg3 {[%clk 01:02:27]} {[%emt 00:00:13]}
Qxa3+ {[%clk 01:16:06]} {[%emt 00:00:12]} 0-1

[Event "Mistrovství Čech mládeže 2023 - HD12"]
[Site "Harrachov, Czech Republic"]
[Date "2023.10.24"]
[Round "5.15"]
[White "Křivka, Lukáš"]
[Black "Vrátný, Vojtěch"]
[Result "1-0"]
[TimeControl "90m + 30s"]
[WhiteElo "1386"]
[BlackElo "1210"]

1. e4 {[%clk 01:30:27]} {[%emt 00:00:33]} e6 {[%clk 01:30:52]} {[%emt
00:00:09]} 2. d4 {[%clk 01:30:21]} {[%emt 00:00:36]} d5 {[%clk 01:30:57]}
{[%emt 00:00:25]} 3. exd5 {[%clk 01:30:33]} {[%emt 00:00:18]} exd5 {[%clk
01:31:06]} {[%emt 00:00:21]} 4. Nf3 {[%clk 01:26:35]} {[%emt 00:04:27]} Nf6
{[%clk 01:31:21]} {[%emt 00:00:14]} 5. Bg5 {[%clk 01:26:12]} {[%emt 00:00:53]}
Bd6 {[%clk 01:31:24]} {[%emt 00:00:27]} 6. Qd2 {[%clk 01:22:06]} {[%emt
00:04:38]} O-O {[%clk 01:31:33]} {[%emt 00:00:20]} 7. Be2 {[%emt 00:10:25]} Bg4
{[%clk 01:29:22]} {[%emt 00:00:05]} 8. O-O {[%clk 01:14:02]} {[%emt 00:01:15]}
Nbd7 {[%clk 01:27:54]} {[%emt 00:01:56]} 9. h3 {[%clk 01:14:04]} {[%emt
00:00:30]} Bxf3 {[%clk 01:26:23]} {[%emt 00:02:01]} 10. Bxf3 {[%clk 01:14:06]}
{[%emt 00:00:28]} c6 {[%clk 01:21:25]} {[%emt 00:05:27]} 11. Bf4 {[%clk
01:11:36]} {[%emt 00:03:01]} Nb6 {[%clk 01:20:08]} {[%emt 00:01:36]} 12. Bxd6
{[%emt 00:02:12]} Qxd6 {[%clk 01:19:35]} {[%emt 00:00:55]} 13. c3 {[%clk
01:08:37]} {[%emt 00:02:07]} Nc4 {[%clk 01:18:57]} {[%emt 00:01:08]} 14. Qc2
{[%clk 01:07:16]} {[%emt 00:01:50]} Rfe8 {[%clk 01:17:45]} {[%emt 00:01:41]} 15.
Nd2 {[%clk 01:07:17]} {[%emt 00:00:30]} Nxd2 {[%clk 01:17:12]} {[%emt
00:01:03]} 16. Qxd2 {[%clk 01:07:26]} {[%emt 00:00:22]} Re7 {[%clk 01:16:24]}
{[%emt 00:01:11]} 17. Rfe1 {[%clk 01:07:07]} {[%emt 00:00:56]} Rae8 {[%clk
01:16:32]} {[%emt 00:00:22]} 18. Rxe7 {[%clk 01:06:26]} {[%emt 00:01:11]} Qxe7
{[%clk 01:15:50]} {[%emt 00:01:12]} 19. Kf1 {[%clk 01:06:19]} {[%emt 00:00:37]}
Ne4 {[%clk 01:15:26]} {[%emt 00:00:52]} 20. Qe2 {[%emt 00:11:37]} Qf6 {[%clk
01:05:26]} {[%emt 00:00:15]} 21. Kg1 {[%clk 01:02:17]} {[%emt 00:03:41]} Re6
{[%clk 01:02:37]} {[%emt 00:03:14]} 22. Qc2 {[%clk 00:48:10]} {[%emt 00:14:42]}
Qf4 {[%clk 00:58:33]} {[%emt 00:04:30]} 23. Bxe4 {[%clk 00:41:43]} {[%emt
00:07:01]} dxe4 {[%clk 00:58:32]} {[%emt 00:00:32]} 24. Re1 {[%clk 00:40:01]}
{[%emt 00:02:11]} e3 {[%clk 00:55:32]} {[%emt 00:03:30]} 25. Qe2 {[%clk
00:38:21]} {[%emt 00:02:11]} exf2+ {[%clk 00:53:36]} {[%emt 00:02:25]} 26. Qxf2
{[%clk 00:38:31]} {[%emt 00:00:20]} Qxf2+ {[%clk 00:53:40]} {[%emt 00:00:25]}
27. Kxf2 {[%clk 00:38:49]} {[%emt 00:00:12]} Rf6+ {[%clk 00:53:31]} {[%emt
00:00:39]} 28. Kg3 {[%clk 00:38:26]} {[%emt 00:00:53]} g6 {[%clk 00:53:23]}
{[%emt 00:00:35]} 29. Re7 {[%clk 00:38:24]} {[%emt 00:00:35]} b6 {[%clk
00:51:36]} {[%emt 00:02:18]} 30. Rxa7 {[%clk 00:38:47]} {[%emt 00:00:07]} c5
{[%clk 00:51:31]} {[%emt 00:00:34]} 31. dxc5 {[%clk 00:38:59]} {[%emt
00:00:19]} bxc5 {[%clk 00:47:56]} {[%emt 00:04:04]} 32. Ra8+ {[%clk 00:37:31]}
{[%emt 00:01:59]} Kg7 {[%clk 00:48:15]} {[%emt 00:00:10]} 33. a4 {[%clk
00:37:41]} {[%emt 00:00:21]} Rb6 {[%clk 00:48:21]} {[%emt 00:00:22]} 34. Rc8
{[%clk 00:37:43]} {[%emt 00:00:30]} Rxb2 {[%clk 00:48:12]} {[%emt 00:00:39]} 35.
Rxc5 {[%clk 00:38:08]} {[%emt 00:00:05]} Ra2 {[%clk 00:47:26]} {[%emt
00:01:16]} 36. a5 {[%clk 00:38:30]} {[%emt 00:00:08]} Ra3 {[%clk 00:47:37]}
{[%emt 00:00:19]} 37. Kf4 {[%clk 00:38:38]} {[%emt 00:00:22]} Ra1 {[%clk
00:46:39]} {[%emt 00:01:28]} 38. Kg3 {[%clk 00:37:53]} {[%emt 00:01:15]} Ra3
{[%clk 00:46:53]} {[%emt 00:00:16]} 39. Kh2 {[%clk 00:38:04]} {[%emt 00:00:18]}
Kf6 {[%clk 00:46:07]} {[%emt 00:01:15]} 40. Rc6+ {[%clk 00:35:34]} {[%emt
00:03:01]} Ke7 {[%clk 00:46:19]} {[%emt 00:00:16]} 41. a6 {[%clk 00:35:38]}
{[%emt 00:00:29]} Kd7 {[%clk 00:45:08]} {[%emt 00:01:40]} 42. Rb6 {[%clk
00:35:48]} {[%emt 00:00:21]} Rxc3 {[%clk 00:42:14]} {[%emt 00:03:23]} 43. a7
{[%clk 00:33:52]} {[%emt 00:02:26]} Ra3 {[%clk 00:42:11]} {[%emt 00:00:33]} 44.
Rb7+ {[%clk 00:34:00]} {[%emt 00:00:23]} Kc6 {[%clk 00:42:27]} {[%emt
00:00:13]} 45. Rxf7 {[%clk 00:34:17]} {[%emt 00:00:13]} Kd6 {[%clk 00:41:12]}
{[%emt 00:01:45]} 46. Rxh7 {[%clk 00:34:20]} {[%emt 00:00:27]} Ke6 {[%clk
00:41:32]} {[%emt 00:00:10]} 47. Rb7 {[%clk 00:34:09]} {[%emt 00:00:41]} Kf6
{[%clk 00:41:37]} {[%emt 00:00:26]} 48. Rb6+ {[%clk 00:30:53]} {[%emt
00:03:46]} Kf5 {[%clk 00:40:07]} {[%emt 00:01:59]} 49. Rb7 {[%clk 00:28:14]}
{[%emt 00:03:09]} Kg5 {[%emt 00:00:47]} 50. Rf7 {[%clk 00:27:06]} {[%emt
00:01:33]} Kh6 {[%clk 00:39:56]} {[%emt 00:00:29]} 51. Kg1 {[%clk 00:26:47]}
{[%emt 00:00:50]} Ra1+ {[%clk 00:40:11]} {[%emt 00:00:14]} 52. Kf2 {[%clk
00:26:48]} {[%emt 00:00:29]} Ra5 {[%clk 00:39:59]} {[%emt 00:00:41]} 53. Ke3
{[%clk 00:26:42]} {[%emt 00:00:37]} Ra1 {[%clk 00:40:14]} {[%emt 00:00:15]} 54.
Kd4 {[%clk 00:25:10]} {[%emt 00:02:03]} g5 {[%clk 00:39:00]} {[%emt 00:01:43]}
55. Kc5 {[%clk 00:24:37]} {[%emt 00:01:03]} Rc1+ {[%clk 00:38:53]} {[%emt
00:00:37]} 56. Kb6 {[%clk 00:24:48]} {[%emt 00:00:19]} Rb1+ {[%clk 00:39:15]}
{[%emt 00:00:08]} 57. Kc7 {[%clk 00:23:54]} {[%emt 00:01:22]} Rc1+ {[%clk
00:39:06]} {[%emt 00:00:41]} 58. Kb8 {[%clk 00:24:07]} {[%emt 00:00:18]} Rb1+
{[%clk 00:39:17]} {[%emt 00:00:18]} 59. Rb7 {[%clk 00:24:31]} {[%emt 00:00:06]}
1-0

[Event "Mistrovství Čech mládeže 2023 - HD12"]
[Site "Harrachov, Czech Republic"]
[Date "2023.10.24"]
[Round "5.16"]
[White "Mrázik, Marek"]
[Black "Ličková, Anna"]
[Result "1-0"]
[TimeControl "90m + 30s"]
[WhiteElo "1159"]
[BlackElo "1366"]

1. e4 {[%clk 01:28:09]} {[%emt 00:02:51]} e5 {[%clk 01:30:48]} {[%emt
00:00:12]} 2. Nf3 {[%clk 01:25:42]} {[%emt 00:02:57]} Nc6 {[%clk 01:31:06]}
{[%emt 00:00:12]} 3. Bc4 {[%clk 01:25:36]} {[%emt 00:00:36]} Bc5 {[%clk
01:31:06]} {[%emt 00:00:30]} 4. c3 {[%clk 01:25:30]} {[%emt 00:00:36]} Nf6
{[%clk 01:31:28]} {[%emt 00:00:07]} 5. d4 {[%clk 01:25:21]} {[%emt 00:00:40]}
exd4 {[%clk 01:31:51]} {[%emt 00:00:08]} 6. cxd4 {[%clk 01:25:38]} {[%emt
00:00:12]} Bb4+ {[%clk 01:32:16]} {[%emt 00:00:06]} 7. Bd2 {[%clk 01:25:14]}
{[%emt 00:00:54]} Bxd2+ {[%clk 01:32:06]} {[%emt 00:00:40]} 8. Nbxd2 {[%clk
01:25:12]} {[%emt 00:00:31]} d5 {[%clk 01:29:47]} {[%emt 00:02:49]} 9. exd5
{[%clk 01:22:03]} {[%emt 00:03:38]} Nxd5 {[%clk 01:28:00]} {[%emt 00:02:18]} 10.
Qe2+ {[%clk 01:21:06]} {[%emt 00:01:28]} Be6 {[%clk 01:21:40]} {[%emt
00:06:50]} 11. O-O {[%emt 00:06:10]} O-O {[%clk 01:17:54]} {[%emt 00:00:01]} 12.
Nb3 {[%clk 01:03:54]} {[%emt 00:16:15]} Re8 {[%clk 01:02:41]} {[%emt 00:15:44]}
13. Qd2 {[%clk 01:02:08]} {[%emt 00:02:16]} Bg4 {[%clk 00:48:28]} {[%emt
00:14:44]} 14. Kh1 {[%clk 00:55:00]} {[%emt 00:07:38]} Qd6 {[%clk 00:37:25]}
{[%emt 00:11:32]} 15. Qg5 {[%clk 00:51:21]} {[%emt 00:04:09]} Be6 {[%clk
00:30:58]} {[%emt 00:06:57]} 16. Rae1 {[%clk 00:43:42]} {[%emt 00:08:09]} h6
{[%clk 00:29:59]} {[%emt 00:01:28]} 17. Qh4 {[%clk 00:41:07]} {[%emt 00:03:05]}
Nf6 {[%clk 00:15:43]} {[%emt 00:14:47]} 18. Bxe6 {[%clk 00:39:38]} {[%emt
00:01:59]} Rxe6 {[%clk 00:15:40]} {[%emt 00:00:33]} 19. Nc5 {[%clk 00:36:14]}
{[%emt 00:03:54]} Rxe1 {[%clk 00:15:17]} {[%emt 00:00:53]} 20. Rxe1 {[%clk
00:36:11]} {[%emt 00:00:33]} b6 {[%clk 00:14:32]} {[%emt 00:01:16]} 21. Ne4
{[%clk 00:35:14]} {[%emt 00:01:26]} Nxe4 {[%clk 00:13:43]} {[%emt 00:01:20]} 22.
Qxe4 {[%clk 00:35:33]} {[%emt 00:00:10]} Rd8 {[%clk 00:12:06]} {[%emt
00:02:07]} 23. Rd1 {[%clk 00:33:30]} {[%emt 00:02:33]} Qd5 {[%clk 00:06:44]}
{[%emt 00:05:51]} 24. Qxd5 {[%clk 00:32:39]} {[%emt 00:01:22]} Rxd5 {[%clk
00:07:10]} {[%emt 00:00:05]} 25. Kg1 {[%clk 00:30:44]} {[%emt 00:02:24]} Kf8
{[%clk 00:07:27]} {[%emt 00:00:13]} 26. Kf1 {[%clk 00:30:56]} {[%emt 00:00:18]}
Ke7 {[%clk 00:07:16]} {[%emt 00:00:41]} 27. Ke2 {[%clk 00:31:16]} {[%emt
00:00:10]} g5 {[%clk 00:06:44]} {[%emt 00:01:02]} 28. Ke3 {[%clk 00:28:30]}
{[%emt 00:03:16]} f5 {[%clk 00:06:49]} {[%emt 00:00:25]} 29. g3 {[%clk
00:28:16]} {[%emt 00:00:45]} Kd6 {[%clk 00:05:17]} {[%emt 00:02:02]} 30. Rd2
{[%clk 00:27:38]} {[%emt 00:01:08]} a6 {[%clk 00:02:55]} {[%emt 00:02:52]} 31.
Ne1 {[%clk 00:27:28]} {[%emt 00:00:39]} Na5 {[%clk 00:02:15]} {[%emt 00:01:07]}
32. b3 {[%clk 00:27:57]} {[%emt 00:00:05]} Ke6 {[%clk 00:01:53]} {[%emt
00:00:51]} 33. Nc2 {[%clk 00:28:10]} {[%emt 00:00:17]} Nc6 {[%clk 00:02:03]}
{[%emt 00:00:20]} 34. f4 {[%clk 00:27:48]} {[%emt 00:00:52]} g4 {[%clk
00:02:21]} {[%emt 00:00:13]} 35. a3 {[%clk 00:27:43]} {[%emt 00:00:35]} a5
{[%clk 00:02:15]} {[%emt 00:00:36]} 36. a4 {[%clk 00:27:32]} {[%emt 00:00:41]}
h5 {[%clk 00:02:09]} {[%emt 00:00:35]} 37. Na3 {[%clk 00:27:45]} {[%emt
00:00:17]} Na7 {[%clk 00:01:48]} {[%emt 00:00:50]} 38. Rc2 {[%clk 00:27:52]}
{[%emt 00:00:24]} Kd7 {[%clk 00:01:03]} {[%emt 00:01:15]} 39. Nc4 {[%clk
00:27:24]} {[%emt 00:00:59]} Nc6 {[%clk 00:01:03]} {[%emt 00:00:31]} 40. Ne5+
{[%clk 00:27:37]} {[%emt 00:00:16]} Nxe5 {[%clk 00:01:22]} {[%emt 00:00:10]} 41.
dxe5 {[%clk 00:28:05]} {[%emt 00:00:02]} Kc8 {[%clk 00:00:44]} {[%emt
00:01:07]} 42. Rd2 {[%clk 00:28:23]} {[%emt 00:00:13]} Rxd2 {[%clk 00:00:42]}
{[%emt 00:00:31]} 43. Kxd2 {[%clk 00:28:52]} {[%emt 00:00:02]} Kd7 {[%clk
00:01:05]} {[%emt 00:00:08]} 44. Kd3 {[%clk 00:29:12]} {[%emt 00:00:10]} c6
{[%clk 00:01:21]} {[%emt 00:00:14]} 45. Kc4 {[%clk 00:29:26]} {[%emt 00:00:16]}
Ke6 {[%clk 00:01:33]} {[%emt 00:00:18]} 46. b4 {[%clk 00:28:21]} {[%emt
00:01:35]} axb4 {[%clk 00:01:46]} {[%emt 00:00:17]} 47. Kxb4 {[%clk 00:28:45]}
{[%emt 00:00:05]} Kd5 {[%clk 00:01:32]} {[%emt 00:00:45]} 48. a5 {[%clk
00:24:34]} {[%emt 00:04:40]} bxa5+ {[%clk 00:01:29]} {[%emt 00:00:33]} 49. Kxa5
{[%clk 00:25:03]} {[%emt 00:00:01]} c5 {[%clk 00:01:53]} {[%emt 00:00:07]} 50.
Ka4 {[%clk 00:25:16]} {[%emt 00:00:17]} Kd4 {[%clk 00:00:42]} {[%emt 00:01:41]}
51. e6 {[%clk 00:25:32]} {[%emt 00:00:15]} c4 {[%clk 00:00:54]} {[%emt
00:00:18]} 52. e7 {[%clk 00:25:56]} {[%emt 00:00:06]} c3 {[%clk 00:01:19]}
{[%emt 00:00:05]} 53. e8=Q {[%clk 00:26:15]} {[%emt 00:00:10]} c2 {[%clk
00:01:37]} {[%emt 00:00:12]} 54. Qe1 {[%clk 00:26:35]} {[%emt 00:00:10]} Kd3
{[%clk 00:00:51]} {[%emt 00:01:16]} 55. Kb3 {[%clk 00:26:34]} {[%emt 00:00:30]}
Kd4 {[%clk 00:00:35]} {[%emt 00:00:46]} 56. Kxc2 {[%clk 00:26:56]} {[%emt
00:00:09]} Kc4 {[%clk 00:00:33]} {[%emt 00:00:31]} 57. Qc3+ {[%clk 00:27:01]}
{[%emt 00:00:26]} Kd5 {[%clk 00:00:36]} {[%emt 00:00:27]} 58. Kd3 {[%clk
00:27:11]} {[%emt 00:00:20]} Kd6 {[%clk 00:00:33]} {[%emt 00:00:31]} 59. Qe5+
{[%clk 00:27:27]} {[%emt 00:00:16]} Kc6 {[%clk 00:00:33]} {[%emt 00:00:28]} 60.
Kc4 {[%clk 00:27:45]} {[%emt 00:00:14]} Kd7 {[%clk 00:00:50]} {[%emt 00:00:13]}
61. Qf6 {[%clk 00:26:53]} {[%emt 00:01:22]} h4 {[%clk 00:00:57]} {[%emt
00:00:22]} 62. Kc5 {[%clk 00:27:03]} {[%emt 00:00:21]} h3 {[%clk 00:00:34]}
{[%emt 00:00:52]} 63. Qd6+ {[%clk 00:27:17]} {[%emt 00:00:17]} Ke8 {[%clk
00:00:49]} {[%emt 00:00:15]} 64. Qc7 {[%clk 00:27:36]} {[%emt 00:00:11]} Kf8
{[%clk 00:01:05]} {[%emt 00:00:15]} 65. Qh7 {[%clk 00:27:42]} {[%emt 00:00:23]}
Ke8 {[%clk 00:01:23]} {[%emt 00:00:12]} 66. Qg7 {[%clk 00:27:56]} {[%emt
00:00:16]} Kd8 {[%clk 00:01:43]} {[%emt 00:00:09]} 67. Kd6 {[%clk 00:28:18]}
{[%emt 00:00:09]} Ke8 {[%clk 00:01:33]} {[%emt 00:00:40]} 68. Qg8# {[%clk
00:28:26]} {[%emt 00:00:22]} 1-0

[Event "Mistrovství Čech mládeže 2023 - HD12"]
[Site "Harrachov, Czech Republic"]
[Date "2023.10.24"]
[Round "5.17"]
[White "Havlík, David"]
[Black "Vlček, Vítězslav"]
[Result "1/2-1/2"]
[TimeControl "90m + 30s"]
[WhiteElo "1331"]
[BlackElo "1120"]

1. d4 {[%clk 01:30:55]} {[%emt 00:00:04]} d5 {[%clk 01:30:44]} {[%emt
00:00:17]} 2. c4 {[%clk 01:31:19]} {[%emt 00:00:05]} e6 {[%clk 01:30:26]}
{[%emt 00:00:48]} 3. Nc3 {[%clk 01:31:39]} {[%emt 00:00:10]} Nf6 {[%clk
01:30:36]} {[%emt 00:00:21]} 4. Nf3 {[%clk 01:31:45]} {[%emt 00:00:23]} c5
{[%clk 01:29:00]} {[%emt 00:02:07]} 5. cxd5 {[%clk 01:31:35]} {[%emt 00:00:40]}
exd5 {[%clk 01:28:56]} {[%emt 00:00:35]} 6. Bf4 {[%clk 01:31:39]} {[%emt
00:00:24]} Nc6 {[%clk 01:28:38]} {[%emt 00:00:49]} 7. e3 {[%clk 01:31:41]}
{[%emt 00:00:27]} Be7 {[%clk 01:21:49]} {[%emt 00:07:19]} 8. dxc5 {[%clk
01:29:35]} {[%emt 00:02:37]} Bxc5 {[%clk 01:21:28]} {[%emt 00:00:51]} 9. Rc1
{[%clk 01:27:56]} {[%emt 00:02:08]} d4 {[%clk 01:14:56]} {[%emt 00:07:02]} 10.
Nb5 {[%clk 01:15:00]} {[%emt 00:13:26]} Bb4+ {[%clk 01:04:27]} {[%emt
00:11:00]} 11. Nd2 {[%clk 01:15:16]} {[%emt 00:00:13]} Nd5 {[%clk 01:04:28]}
{[%emt 00:00:29]} 12. Bc4 {[%clk 00:57:14]} {[%emt 00:18:32]} Nxf4 {[%clk
00:59:10]} {[%emt 00:05:48]} 13. exf4 {[%clk 00:57:20]} {[%emt 00:00:25]} O-O
{[%clk 00:55:48]} {[%emt 00:03:52]} 14. O-O {[%clk 00:57:17]} {[%emt 00:00:33]}
a6 {[%clk 00:55:18]} {[%emt 00:01:01]} 15. Na3 {[%clk 00:57:14]} {[%emt
00:00:31]} Qd6 {[%clk 00:53:00]} {[%emt 00:02:48]} 16. Nc2 {[%clk 00:54:25]}
{[%emt 00:03:20]} Qxf4 {[%clk 00:50:16]} {[%emt 00:03:13]} 17. Nf3 {[%clk
00:53:41]} {[%emt 00:01:14]} Bc5 {[%clk 00:44:59]} {[%emt 00:05:48]} 18. Nce1
{[%clk 00:52:45]} {[%emt 00:01:25]} Bd6 {[%clk 00:41:42]} {[%emt 00:03:47]} 19.
h3 {[%clk 00:51:07]} {[%emt 00:02:08]} Qf6 {[%clk 00:34:32]} {[%emt 00:07:40]}
20. Bd3 {[%clk 00:48:18]} {[%emt 00:03:19]} h6 {[%clk 00:32:46]} {[%emt
00:02:17]} 21. Nc2 {[%clk 00:47:27]} {[%emt 00:01:20]} Be6 {[%clk 00:30:16]}
{[%emt 00:03:00]} 22. Ncxd4 {[%clk 00:46:22]} {[%emt 00:01:35]} Bd5 {[%clk
00:24:49]} {[%emt 00:05:57]} 23. Nxc6 {[%clk 00:44:06]} {[%emt 00:02:46]} Bxc6
{[%clk 00:24:58]} {[%emt 00:00:21]} 24. Nd2 {[%clk 00:39:08]} {[%emt 00:05:27]}
Bf4 {[%clk 00:23:09]} {[%emt 00:02:17]} 25. Rc2 {[%clk 00:35:37]} {[%emt
00:04:03]} Rad8 {[%clk 00:23:18]} {[%emt 00:00:21]} 26. Rc3 {[%clk 00:27:13]}
{[%emt 00:08:54]} 1/2-1/2